Cogmind - Beta 10.2 @@@ ROGUE MODE // 2020.11.14 @ 19:50:11 Player: cptwinky Result: Destroyed by as-17448 with Assembled Rifle Performance ------------- Evolutions (0) 0 Regions Visited (4) 800 Robots Destroyed (26) 130 Value Destroyed (635) 635 Prototype IDs (0) 0 Alien Tech Used (0) 0 Bonus (56) 56 TOTAL SCORE: 1621 Bonus ------- Follower Combat Kills 56 Cogmind --------- Core Integrity 0/250 Matter 177/300 Energy 100/100 System Corruption 0% Temperature Cool (0) Movement Rolling (100) Ox1 Location -9/Mines Parts ------- > --- POWER (1) -------- (None) > --- PROPULSION (2) --- Wheel Compact Wheel > --- UTILITY (2) ------ Large Storage Unit High-capacity Storage Unit > --- WEAPON (2) ------- Rocket Launcher > --- INVENTORY (18) --- Fission Core Fission Core Large Storage Unit High-capacity Matter Pod (200) Sensor Drone Bay Rocket Launcher Mace Peak State ------------ > --- POWER ------------ Light Ion Engine > --- PROPULSION ------- Light Treads Light Treads > --- UTILITY ---------- Large Storage Unit High-capacity Storage Unit > --- WEAPON ----------- Assault Rifle Rocket Launcher > --- INVENTORY -------- Ion Engine Nuclear Core Fission Core Fission Core Wheel Compact Wheel Large Storage Unit High-capacity Matter Pod Sensor Drone Bay Assault Rifle Assault Rifle Assault Rifle Rocket Launcher Mace [Rating: 11] Favorites ----------- Power Light Ion Engine Engine Light Ion Engine Propulsion Light Treads Treads Light Treads Wheel Wheel Utility Large Storage Unit Storage Large Storage Unit Weapon Assault Rifle Ballistic Gun Assault Rifle Launcher Rocket Launcher Build | -11 -10 -10 -10 -9 ------- Run | Scr Mat Min Exi Min Slots Evolved . | . . . . . Power . | . . . . . Propulsion . | . . . . . Utility . | . . . . . Weapon . | . . . . . Parts Attached 21 | 6 6 1 1 7 Power 2 | 1 . . . 1 Engine 2 | 1 . . . 1 Core . | . . . . . Reactor . | . . . . . Propulsion 6 | 2 2 . . 2 Treads 4 | 2 2 . . . Leg . | . . . . . Wheel 2 | . . . . 2 Hover . | . . . . . Flight . | . . . . . Utility 6 | 1 4 . 1 . Device . | . . . . . Storage 6 | 1 4 . 1 . Processor . | . . . . . Hackware . | . . . . . Protection . | . . . . . Artifact . | . . . . . Weapon 7 | 2 . 1 . 4 Energy Gun . | . . . . . Energy Cannon . | . . . . . Ballistic Gun 5 | 2 . . . 3 Ballistic Cannon . | . . . . . Launcher 2 | . . 1 . 1 Special Weapon . | . . . . . Impact Weapon . | . . . . . Slashing Weapon . | . . . . . Piercing Weapon . | . . . . . Special Melee Weapon . | . . . . . Unidentified Prototypes . | . . . . . Parts Lost 8 | . . . . 8 Power 2 | . . . . 2 Propulsion 2 | . . . . 2 Utility . | . . . . . Weapon 4 | . . . . 4 Highest Loss Streak 5 | . . . . 5 Average Slot Usage (%) 97 | . 96 100 100 96 Engine 13 | . 14 14 14 12 Treads 26 | . 28 28 28 21 Wheel 1 | . . . . 5 Storage 26 | . 24 28 28 28 Ballistic Gun 21 | . 28 18 14 15 Launcher 6 | . . 9 14 11 Naked Turns . | . . . . . Heaviest Build 57 | 11 39 41 57 57 Greatest Support 40 | 40 40 40 40 40 Greatest Overweight (x) 2 | . . 1 1 2 Average Overweight (x) . | . . . 1 1 Largest Inventory Capacity 18 | 6 16 16 18 18 Average Capacity 12 | 5 8 16 16 18 Most Carried 14 | 4 9 9 13 14 Average Carried 8 | 2 6 9 11 12 Final Capacity 18 | 6 16 16 18 18 Final Carried 13 | 4 9 9 13 7 Class Distribution -------------------- 100% | Mutant Dominant Class ---------------- Mutant | -10/Materials Mutant | -10/Mines Mutant | -10/Exiles Mutant | -9/Mines Resources | -11 -10 -10 -10 -9 ----------- Run | Scr Mat Min Exi Min Matter Collected 811 | 284 474 32 10 11 Remotely . | . . . . . Salvage Created 826 | 89 569 104 . 64 Parts 50 | 3 38 6 . 3 Haulers Intercepted 2 | . 2 . . . Recyclers Shooed . | . . . . . Parts Field Recycled . | . . . . . Retrieved Matter . | . . . . . Parts Self-Destructed . | . . . . . Prevented . | . . . . . Kills | -11 -10 -10 -10 -9 ------- Run | Scr Mat Min Exi Min Combat Hostiles Destroyed 23 | . 12 5 . 6 Guns 16 | . 12 . . 4 AOE 7 | . . 5 . 2 Classes Destroyed 8 | 2 3 . . 3 Worker 1 | 1 . . . . Builder 1 | . . . . 1 Hauler 2 | . 2 . . . Recycler 2 | 1 1 . . . Swarmer 6 | . 3 3 . . Grunt 12 | . 9 2 . 1 Demolisher 2 | . . . . 2 Assembled 3 | . . . . 3 Best Kill Streak 6 | 2 6 3 . 3 Combat Bots Only 6 | . 6 3 . 3 Max Kills in Single Turn 3 | 1 1 3 . 2 Gunslinging . | . . . . . Exploded 3 | . . 3 . 1 Melee . | . . . . . Uniques/NPCs Destroyed . | . . . . . Combat | -11 -10 -10 -10 -9 -------- Run | Scr Mat Min Exi Min Damage Taken 1411 | . 609 41 . 761 Core 252 | . 142 . . 110 Absorbed by Shields . | . . . . . Core Remaining (%) 100 | 100 . . . . Volleys Fired 66 | 4 45 2 . 15 Largest 2 | 2 2 1 . 2 Hottest 40 | 40 40 33 . 40 Shots Fired 124 | 8 90 2 . 24 Gun 118 | 8 90 . . 20 Cannon . | . . . . . Launcher 6 | . . 2 . 4 Special . | . . . . . Kinetic 118 | 8 90 . . 20 Thermal . | . . . . . Explosive 6 | . . 2 . 4 Electromagnetic . | . . . . . Robot Hit Streak 16 | 7 16 4 . 9 Robot Miss Streak 4 | . 4 . . 4 Penetration Max . | . . . . . Secondary Targets 3 | . 1 . . 2 Max Gunslinging Chain 1 | . 1 . . 1 Shots Hit Robots 93 | 7 69 1 . 16 Core Hits 50 | 3 26 6 . 15 Critical Hits 1 | . 1 . . . Critical Kills 1 | . 1 . . . Critical Parts Destroyed . | . . . . . Melee Attacks . | . . . . . Impact . | . . . . . Slashing . | . . . . . Piercing . | . . . . . Sneak Attacks . | . . . . . Combat Hostiles . | . . . . . Follow-up Attacks . | . . . . . Damage Inflicted 1652 | 87 863 238 . 464 Guns 1082 | 87 849 . . 146 Cannons . | . . . . . Explosions 556 | . . 238 . 318 Melee . | . . . . . Ramming 14 | . 14 . . . Kinetic 1082 | 87 849 . . 146 Thermal . | . . . . . Explosive 556 | . . 238 . 318 Electromagnetic . | . . . . . Impact . | . . . . . Slashing . | . . . . . Piercing . | . . . . . Highest Corruption . | . . . . . Average Corruption . | . . . . . Corruption Purged . | . . . . . Overload Shots . | . . . . . Overflow Damage . | . . . . . Projectiles . | . . . . . Explosions . | . . . . . Melee . | . . . . . Knockbacks . | . . . . . Impact . | . . . . . Kinetic . | . . . . . Secondary . | . . . . . Self-Inflicted Damage 65 | . . 11 . 54 Shots 3 | . . 1 . 2 Rammed 3 | . 3 . . . Targets Rammed 4 | . 4 . . . Kicked . | . . . . . Crushed 1 | . 1 . . . Highest Temperature 5 | . 5 . . . Average Temperature 2 | . 2 . . . Received Heat Transfer 279 | . 273 . . 6 Siege Activations . | . . . . . Robots Corrupted . | . . . . . Combat Hostiles . | . . . . . Parts Fried . | . . . . . Impact Corruptions . | . . . . . Robots Melted . | . . . . . Combat Hostiles . | . . . . . Parts Melted . | . . . . . Heat Transferred . | . . . . . Parts Sabotaged . | . . . . . Parts Stolen . | . . . . . Parts Stripped . | . . . . . Power Chain Reactions . | . . . . . Missiles Intercepted . | . . . . . Alert | -11 -10 -10 -10 -9 ------- Run | Scr Mat Min Exi Min Peak Influence 236 | 10 236 153 . 141 Initial 33 | . 6 33 . . Average 61 | 1 70 88 . 47 Maximum Alert Level 1 | . 1 . . . Low Security (%) 94 | 100 89 100 . 100 Level 1 5 | . 10 . . . Level 2 . | . . . . . Level 3 . | . . . . . Level 4 . | . . . . . Level 5 . | . . . . . High Security . | . . . . . Max Security . | . . . . . Squads Dispatched 2 | . 2 . . . Investigation 1 | . 1 . . . Extermination . | . . . . . Reinforcement 1 | . 1 . . . Assault . | . . . . . Garrison . | . . . . . Intercept . | . . . . . Construction Impeded . | . . . . . Haulers Reinforced . | . . . . . Stealth | -11 -10 -10 -10 -9 --------- Run | Scr Mat Min Exi Min Distress Signals 1 | . 1 . . . Communications Jammed . | . . . . . Distress Signals . | . . . . . Times Spotted 32 | . 19 5 . 8 Peak Tracking Total 5 | . 5 3 . 3 Tactical Retreats 1 | . . . . 1 Traps | -11 -10 -10 -10 -9 ------- Run | Scr Mat Min Exi Min Traps Triggered . | . . . . . Indirectly . | . . . . . Trap Hack Attempts . | . . . . . Triggered . | . . . . . Disarmed . | . . . . . Reprogrammed . | . . . . . Reused . | . . . . . Traps Extracted . | . . . . . Installed . | . . . . . Triggered . | . . . . . Exploded 1 | . . . . 1 Machines | -11 -10 -10 -10 -9 ---------- Run | Scr Mat Min Exi Min Machines Disabled . | . . . . . Max in Single Turn . | . . . . . Machines Sabotaged . | . . . . . Garrisons Compromised . | . . . . . Overloaded Fab Kills . | . . . . . Fab Network Shutdowns . | . . . . . Hacking | -11 -10 -10 -10 -9 --------- Run | Scr Mat Min Exi Min Machines Accessed 9 | . 7 . 1 1 Terminals 5 | . 5 . . . Fabricators . | . . . . . Repair Stations . | . . . . . Recycling Units 2 | . 2 . . . Scanalyzers . | . . . . . Garrison Access . | . . . . . Total Hacks 21 | . 19 . 1 1 Successful 5 | . 3 . 1 1 Failed 16 | . 16 . . . Catastrophic 2 | . 2 . . . Database Lockouts . | . . . . . Manual 13 | . 13 . . . Terminals 15 | . 15 . . . Fabricators . | . . . . . Repair Stations . | . . . . . Recycling Units 4 | . 4 . . . Scanalyzers . | . . . . . Garrison Access . | . . . . . Terminal Hacks 5 | . 3 . 1 1 Record 1 | . . . 1 . Robot Analysis 2 | . 2 . . . Open Door 1 | . . . . 1 Unreport Threat 1 | . 1 . . . Fabricator Hacks . | . . . . . Repair Station Hacks . | . . . . . Recycling Unit Hacks . | . . . . . Scanalyzer . | . . . . . Garrison Access Hacks . | . . . . . Unauthorized Hacks . | . . . . . Terminals . | . . . . . Fabricators . | . . . . . Repair Stations . | . . . . . Recycling Units . | . . . . . Scanalyzers . | . . . . . Garrison Access . | . . . . . Data Cores Recovered . | . . . . . Used . | . . . . . Hacking Detections 7 | . 7 . . . Full Trace Events 4 | . 4 . . . Feedback Events . | . . . . . Feedback Blocked . | . . . . . Robot Schematics Acquired . | . . . . . Robots Built . | . . . . . Matter . | . . . . . Time . | . . . . . Total Robot Build Rating . | . . . . . Part Schematics Acquired . | . . . . . Parts Built . | . . . . . Matter . | . . . . . Time . | . . . . . Total Part Build Rating . | . . . . . Parts Repaired . | . . . . . Time . | . . . . . Parts Recycled . | . . . . . Recycled Matter . | . . . . . Retrieved Matter . | . . . . . Retrieved Components . | . . . . . Parts Scanalyzed . | . . . . . Part Schematics Acquired . | . . . . . Parts Damaged . | . . . . . Bothacking | -11 -10 -10 -10 -9 ------------ Run | Scr Mat Min Exi Min Used RIF Installer . | . . . . . Robots Hacked . | . . . . . Non-combat . | . . . . . Combat . | . . . . . Robot Hacks Applied . | . . . . . Relay Couplers Released . | . . . . . Robots Rewired . | . . . . . Allies Hacked . | . . . . . Hacks Repelled . | . . . . . Allies | -11 -10 -10 -10 -9 -------- Run | Scr Mat Min Exi Min Total Allies 3 | . . . . 3 Largest Group 3 | . . . . 3 Highest-Rated Group 40 | . . . . 40 Highest-Rated Ally 16 | . . . . 16 Total Orders . | . . . . . Ally Attacks 21 | . . . . 21 Total Damage 303 | . . . . 303 Kills 5 | . . . . 5 Allies Corrupted . | . . . . . Allies Melted . | . . . . . Intel | -11 -10 -10 -10 -9 ------- Run | Scr Mat Min Exi Min Robot Analysis Total 2 | . 2 . . . Derelict Logs Recovered 3 | . . 1 . 2 Drone Launches . | . . . . . Drone Recoveries . | . . . . . Exploration | -11 -10 -10 -10 -9 ------------- Run | Scr Mat Min Exi Min Turns Passed 1711 | 122 752 189 343 305 Spaces Moved 853 | 62 359 107 188 137 Core 5 | 5 . . . . Treads 825 | 57 359 107 188 114 Legs . | . . . . . Wheels 23 | . . . . 23 Hover . | . . . . . Flight . | . . . . . Fastest Speed 50 | 50 160 160 180 100 Average Speed 166 | 151 160 172 180 167 Slowest Speed 180 | 160 160 180 180 180 Overloaded Moves . | . . . . . Propulsion Burnouts . | . . . . . Robots Hopped . | . . . . . Cave-ins Triggered . | . . . . . Exploration Rate (%) 36 | 5 60 29 54 33 Regions Visited 4 Branch Regions 3 Pre-discovered Areas 2 | . . 1 1 . Known Exits Taken . | . . . . . Unknown Exits Taken 4 | 1 1 1 1 . Scrap Searched . | . . . . . Spaces Dug 12 | . . 12 . . Terrain Destroyed 67 | . . 26 . 41 Melee . | . . . . . Projectile . | . . . . . AOE 67 | . . 26 . 41 Terrain Rammed . | . . . . . Walls Destroyed . | . . . . . Machines Disabled . | . . . . . Actions | -11 -10 -10 -10 -9 --------- Run | Scr Mat Min Exi Min Total 1017 | 79 447 109 193 189 Wait 51 | 4 19 . . 28 Move 849 | 61 358 106 187 137 Hop . | . . . . . Pick Up 17 | 4 8 . 4 1 Fast Attach 7 | 6 1 . . . Attach 6 | . . . . 6 Detach . | . . . . . Swap 8 | . 5 1 1 1 Drop 9 | . 7 . 1 1 Fire 66 | 4 45 2 . 15 Melee . | . . . . . Ram . | . . . . . Kick . | . . . . . Crush 4 | . 4 . . . Escape Stasis . | . . . . . Rewire . | . . . . . Trap . | . . . . . Miscellaneous . | . . . . . Route ------- -11/Scrapyard -10/Materials (discovered 2 exits: [*Mat] / [*Min]) -10/Mines -10/Exiles (discovered 2 exits: *Min x2) -9/Mines History --------- Turn | Location | Event 2 | -11/Scrapyard | Met Revision 17 9 | -11/Scrapyard | Discovered new exit (range 15) 123 | -11/Scrapyard | Entered Materials 337 | -10/Materials | Build established: Mutant 510 | -10/Materials | Core integrity fell below 50% 651 | -10/Materials | Discovered new exit (range 8) 836 | -10/Materials | Discovered new exit (range 15) 875 | -10/Materials | Entered Mines 959 | -10/Mines | Learned location of Storage (-8) 1055 | -10/Mines | Deemed a non-threat by the Exiles lab entrance 1057 | -10/Mines | Discovered new exit (range 5) 1064 | -10/Mines | Entered Exiles 1093 | -10/Exiles | Discovered new exit (range 15) 1109 | -10/Exiles | Met 8R-AWN 1184 | -10/Exiles | Met EX-HEX 1292 | -10/Exiles | Met EX-DEC 1324 | -10/Exiles | Learned location of Zion (-7) 1389 | -10/Exiles | Discovered new exit (range 12) 1407 | -10/Exiles | Entered Mines 1414 | -9/Mines | Found the Drone Emporium 1425 | -9/Mines | Found Prototype Device 1491 | -9/Mines | Assisted by bots powering up and referring to "LRC-V3" 1614 | -9/Mines | Assembled infested the area 1633 | -9/Mines | Learned 4 Materials zone layouts 1652 | -9/Mines | Core integrity fell below 20% 1680 | -9/Mines | Lost 5 parts (1p2n2w) 1712 | -9/Mines | Destroyed by as-17448 with Assembled Rifle Last Messages --------------- 01649_ Switching to secondary target: D-53 Grenadier. 01651_ The unstable cave ceiling collapses. 01655_ D-53 Grenadier destroyed. 01660_ The unstable cave ceiling collapses. 01666_ Dropped Rigged Nuclear Core. 01668_ The unstable cave ceiling collapses. 01672_ K-01 Serf destroyed. 01677_ The unstable cave ceiling collapses. 01677_ Rigged Nuclear Core explodes. 01678_ The unstable cave ceiling collapses. 01681_ Ion Engine destroyed. 01682_ The unstable cave ceiling collapses. 01688_ as-07112 destroyed. 01689_ The unstable cave ceiling collapses. 01692_ as-43936 destroyed. 01692_ Switching to secondary target: as-04201. 01692_ Assault Rifle destroyed. 01703_ as-04201 destroyed. 01705_ R-06 Scavenger collects Wheel. 01711_ The unstable cave ceiling collapses. Map ----- +----------------------------------------------------+ | ?????## #????????????????????????????????? | | ?????# ##????????????????????????????????? | | ?????## ##?????????????????????????????????? | | ??????## ## ##??????????????????????????????????? | | ???????# ## #???????????????????????????????????? | | ???????# #####???????????????????????????????? | | ???????# ##### ???????????????????????????????? | | ???????# #??? ##??????????????????????????????? | | ???????# #?## #??????????????????????????????? | | ???????# #?#=# ! #??????????????????????????????? | | ???????# ##### %##??????????????????????????????? | | ???????# =%% ##??????????????????????????????? | | ???????##### # ##??????????????????????????????? | | ??????????##%#% ##????##????????????????????????? | | ???????????### ##????# ##??????????????????????? | | ??????######## #?????? *??????????????????????? | | ???# ####??? a#??????????????????????? | | ??????########% ##?? #??????????????????????? | | ????????????## ##? #??????????????????????? | | ????????????# k %= ##!#??????????????????????? | | ???????????## ##%##?????????????????????? | | ???????????# = ###???????????????????? | | ??????????# # ####????????????????? | | ??????????# # ###??????????????? | | ??????????## # #??????????????? | | ???????????###### ### @ #??????????????? | | ????????????????# ## #??????????????? | | ????????????????# ### #??????????????? | | ????????????????#####?# #??????????????? | | ??????????????????????## ##?????????????? | | ??????????????????????## ## ##?????????????? | | ???????????????????????### ##?????????????? | | ?????????????????????????### #??????????????? | | ???????????????????????????### #??????????????? | | ????????????????????????????## ###??????????????? | | | | | | | | | | | | | | | | | | | | | | | | | | | | | | | +----------------------------------------------------+ Best States ------------- Heat Dissipation 25 Energy Generation 10 Energy Capacity 250 Matter Stores 409 Matter Capacity 450 Sight Range 16 Terrain Scan Density 10 Evasion (%) 40 Recoil Reduction 2 Item Schematics ----------------- None Robot Schematics ------------------ None Fabricated ------------ Nothing Alien Tech Used ----------------- None Achievements -------------- None Challenges ------------ None Game ------ Seed CooledGreatDatajack Manual? 0 Play Time 00:06:54 Cumulative 707.3 hours Start 2020.11.14 @ 19:42:53 End 2020.11.14 @ 19:50:11 Sessions 1 Manual Loads 0 Difficulty Rogue Special Mode None Game No. 514 Rogue 510 Adventurer 4 Explorer 0 Win Type - Total 80 Types 63/7/3/3/2/0/0/1/1 Lore% 94 Gallery% 96 Achievement% 96 Wizard Run 0 Options --------- ASCII 0 Keyboard 1 Movement Vi Keybinds 0 Fullscreen 0 Font 16/Terminus Map View 76x50 Tactical HUD 1 Map Filters NONE Filters NONE Steam 1 RUN: 8bf7dee5-12c6-4a2e-852a-b0a57b990f8f